[Event "Titled Tuesday Blitz March 21 Late 2023"]
[White "Rose, Felix"]
[Black "Filgueira, Hernan"]
[WhiteFideId "5105722"]
[BlackFideId "101770"]
[WhiteElo "2039"]
[BlackElo "2363"]
[Result "0-1"]
[Round "02"]
[TimeControl "180+2"]
[Date "2023.03.21"]
[WhiteClock "0:00:07"]
[BlackClock "0:00:21"]

1. e4 {[%clk 0:03:00]}  d6 {[%clk 0:03:00]} 2. d4 {[%clk 0:03:00]}  Nf6 {[%clk 0:03:00]} 3. Nc3 {[%clk 0:02:59]}  Nbd7 {[%clk 0:03:01]} 4. g4 {[%clk 0:02:57]}  h6 {[%clk 0:03:00]} 5. h3 {[%clk 0:02:54]}  e5 {[%clk 0:02:59]} 6. Nge2 {[%clk 0:02:51]}  c6 {[%clk 0:02:58]} 7. Bg2 {[%clk 0:02:51]}  Be7 {[%clk 0:02:57]} 8. Be3 {[%clk 0:02:51]}  b5 {[%clk 0:02:55]} 9. Qd2 {[%clk 0:02:49]}  a6 {[%clk 0:02:54]} 10. O-O {[%clk 0:02:48]}  Qc7 {[%clk 0:02:49]} 11. f4 {[%clk 0:02:48]}  Bb7 {[%clk 0:02:42]} 12. Ng3 {[%clk 0:02:44]}  exd4 {[%clk 0:02:38]} 13. Bxd4 {[%clk 0:02:39]}  c5 {[%clk 0:02:38]} 14. Be3 {[%clk 0:02:31]}  b4 {[%clk 0:02:34]} 15. Nce2 {[%clk 0:02:31]}  g6 {[%clk 0:02:24]} 16. g5 {[%clk 0:02:21]}  hxg5 {[%clk 0:02:23]} 17. fxg5 {[%clk 0:02:21]}  Nh7 {[%clk 0:02:19]} 18. Rf2 {[%clk 0:02:12]}  Ne5 {[%clk 0:02:18]} 19. b3 {[%clk 0:02:09]}  O-O {[%clk 0:02:12]} 20. Raf1 {[%clk 0:01:51]}  Rad8 {[%clk 0:02:10]} 21. c4 {[%clk 0:01:49]}  bxc3 {[%clk 0:02:09]} 22. Nxc3 {[%clk 0:01:49]}  Rd7 {[%clk 0:02:04]} 23. Nd5 {[%clk 0:01:44]}  Bxd5 {[%clk 0:02:03]} 24. Qxd5 {[%clk 0:01:44]}  Bxg5 {[%clk 0:01:55]} 25. Bxg5 {[%clk 0:01:43]}  Nxg5 {[%clk 0:01:54]} 26. Rf6 {[%clk 0:01:30]}  Nh7 {[%clk 0:01:51]} 27. R6f4 {[%clk 0:01:20]}  c4 {[%clk 0:01:48]} 28. Rc1 {[%clk 0:01:17]}  Qa7+ {[%clk 0:01:38]} 29. Kh2 {[%clk 0:01:17]}  cxb3 {[%clk 0:01:37]} 30. axb3 {[%clk 0:01:16]}  Qe3 {[%clk 0:01:32]} 31. Rcf1 {[%clk 0:01:13]}  Qc5 {[%clk 0:01:28]} 32. Qd2 {[%clk 0:01:07]}  Rc7 {[%clk 0:01:26]} 33. Rh4 {[%clk 0:01:06]}  f6 {[%clk 0:01:21]} 34. Qh6 {[%clk 0:01:04]}  Rg7 {[%clk 0:01:20]} 35. Bf3 {[%clk 0:01:00]}  Nf7 {[%clk 0:01:13]} 36. Qd2 {[%clk 0:00:56]}  Qe5 {[%clk 0:01:11]} 37. Be2 {[%clk 0:00:48]}  Nhg5 {[%clk 0:01:07]} 38. Bxa6 {[%clk 0:00:44]}  Rh7 {[%clk 0:00:40]} 39. Rxh7 {[%clk 0:00:33]}  Kxh7 {[%clk 0:00:40]} 40. Qd3 {[%clk 0:00:17]}  Kg7 {[%clk 0:00:38]} 41. Bc4 {[%clk 0:00:16]}  Rh8 {[%clk 0:00:38]} 42. Bxf7 {[%clk 0:00:10]}  Kxf7 {[%clk 0:00:36]} 43. Qd5+ {[%clk 0:00:08]}  Qxd5 {[%clk 0:00:36]} 44. exd5 {[%clk 0:00:09]}  f5 {[%clk 0:00:36]} 45. Kg2 {[%clk 0:00:08]}  Kf6 {[%clk 0:00:35]} 46. Rh1 {[%clk 0:00:08]}  Rh4 {[%clk 0:00:33]} 47. Nf1 {[%clk 0:00:07]}  Rd4 {[%clk 0:00:31]} 48. h4 {[%clk 0:00:07]}  Nf7 {[%clk 0:00:30]} 49. Ne3 {[%clk 0:00:07]}  Rd3 {[%clk 0:00:29]} 50. Kf3 {[%clk 0:00:08]}  Rxb3 {[%clk 0:00:28]} 51. Rd1 {[%clk 0:00:08]}  Ne5+ {[%clk 0:00:28]} 52. Ke2 {[%clk 0:00:08]}  Rb2+ {[%clk 0:00:28]} 53. Rd2 {[%clk 0:00:08]}  Rb4 {[%clk 0:00:26]} 54. h5 {[%clk 0:00:07]}  gxh5 {[%clk 0:00:25]} 55. Rd1 {[%clk 0:00:08]}  f4 {[%clk 0:00:25]} 56. Rf1 {[%clk 0:00:09]}  Re4 {[%clk 0:00:24]} 57. Kd2 {[%clk 0:00:08]}  Kg5 {[%clk 0:00:22]} 58. Ng2 {[%clk 0:00:08]}  f3 {[%clk 0:00:21]} 59. Ne3 {[%clk 0:00:08]}  Rd4+ {[%clk 0:00:20]} 60. Kc3 {[%clk 0:00:08]}  Rd3+ {[%clk 0:00:20]} 61. Kc2 {[%clk 0:00:07]}  Rxe3 {[%clk 0:00:21]} 0-1


[Site "https://www.chess.com"]

[Event "Titled Tuesday Blitz March 21 Late 2023"]
[White "Firouzja, Alireza"]
[Black "Godzwon, Iwo"]
[WhiteFideId "12573981"]
[BlackFideId "21802483"]
[WhiteElo "2904"]
[BlackElo "2284"]
[Result "1-0"]
[Round "02"]
[TimeControl "180+2"]
[Date "2023.03.21"]
[WhiteClock "0:00:03"]
[BlackClock "0:00:02"]

1. d4 {[%clk 0:03:00]}  Nf6 {[%clk 0:02:55]} 2. c4 {[%clk 0:02:59]}  e6 {[%clk 0:02:53]} 3. Nf3 {[%clk 0:02:58]}  b6 {[%clk 0:02:52]} 4. g3 {[%clk 0:02:56]}  Bb7 {[%clk 0:02:52]} 5. Bg2 {[%clk 0:02:54]}  Bb4+ {[%clk 0:02:52]} 6. Bd2 {[%clk 0:02:54]}  Bxd2+ {[%clk 0:02:53]} 7. Qxd2 {[%clk 0:02:54]}  O-O {[%clk 0:02:53]} 8. O-O {[%clk 0:02:49]}  d6 {[%clk 0:02:52]} 9. Nc3 {[%clk 0:02:45]}  Ne4 {[%clk 0:02:52]} 10. Nxe4 {[%clk 0:02:34]}  Bxe4 {[%clk 0:02:53]} 11. Qe3 {[%clk 0:02:31]}  Bb7 {[%clk 0:02:50]} 12. Qd3 {[%clk 0:02:31]}  f5 {[%clk 0:02:42]} 13. d5 {[%clk 0:02:26]}  e5 {[%clk 0:02:39]} 14. e4 {[%clk 0:02:24]}  fxe4 {[%clk 0:02:31]} 15. Qxe4 {[%clk 0:02:23]}  Nd7 {[%clk 0:02:31]} 16. h4 {[%clk 0:02:22]}  h6 {[%clk 0:02:24]} 17. Nd2 {[%clk 0:02:16]}  Nc5 {[%clk 0:02:23]} 18. Qe3 {[%clk 0:02:16]}  a5 {[%clk 0:02:21]} 19. b3 {[%clk 0:02:16]}  Bc8 {[%clk 0:02:20]} 20. a3 {[%clk 0:02:15]}  Bf5 {[%clk 0:02:20]} 21. b4 {[%clk 0:02:12]}  axb4 {[%clk 0:01:38]} 22. axb4 {[%clk 0:02:08]}  Nd3 {[%clk 0:01:39]} 23. Rab1 {[%clk 0:01:52]}  Ra4 {[%clk 0:01:36]} 24. Be4 {[%clk 0:01:51]}  Ra3 {[%clk 0:01:13]} 25. Bxf5 {[%clk 0:01:25]}  Rxf5 {[%clk 0:01:14]} 26. Ne4 {[%clk 0:01:25]}  Qf8 {[%clk 0:00:32]} 27. Rbd1 {[%clk 0:01:01]}  Rf3 {[%clk 0:00:32]} 28. Qe2 {[%clk 0:00:58]}  Qf5 {[%clk 0:00:32]} 29. Rxd3 {[%clk 0:00:33]}  Raxd3 {[%clk 0:00:30]} 30. Kg2 {[%clk 0:00:31]}  Rfe3 {[%clk 0:00:18]} 31. Nf6+ {[%clk 0:00:27]}  gxf6 {[%clk 0:00:09]} 32. fxe3 {[%clk 0:00:28]}  Qe4+ {[%clk 0:00:09]} 33. Kh3 {[%clk 0:00:28]}  Rxe3 {[%clk 0:00:09]} 34. Qh5 {[%clk 0:00:29]}  Kg7 {[%clk 0:00:05]} 35. Qe8 {[%clk 0:00:27]}  Qg6 {[%clk 0:00:06]} 36. Qd7+ {[%clk 0:00:26]}  Qf7 {[%clk 0:00:06]} 37. Qc8 {[%clk 0:00:24]}  h5 {[%clk 0:00:04]} 38. Ra1 {[%clk 0:00:22]}  Kh6 {[%clk 0:00:01]} 39. Qh8+ {[%clk 0:00:16]}  Kg6 {[%clk 0:00:01]} 40. Qc8 {[%clk 0:00:11]}  Qg7 {[%clk 0:00:01]} 41. Rg1 {[%clk 0:00:03]}  Kh6 {[%clk 0:00:02]} 42. Qf5 {[%clk 0:00:03]}  Qg6 {[%clk 0:00:02]} 43. Qc8 {[%clk 0:00:03]} 1-0


[Site "https://www.chess.com"]

[Event "Titled Tuesday Blitz March 21 Late 2023"]
[White "Castellanos Hernandez, Emilio Au"]
[Black "Sarana, Alexey"]
[WhiteFideId "5114179"]
[BlackFideId "24133795"]
[WhiteElo "2037"]
[BlackElo "2714"]
[Result "0-1"]
[Round "02"]
[TimeControl "180+2"]
[Date "2023.03.21"]
[WhiteClock "0:02:15"]
[BlackClock "0:02:33"]

1. d4 {[%clk 0:03:00]}  Nf6 {[%clk 0:02:42]} 2. Bf4 {[%clk 0:03:00]}  d5 {[%clk 0:02:40]} 3. e3 {[%clk 0:03:00]}  c5 {[%clk 0:02:40]} 4. Nf3 {[%clk 0:02:59]}  Nc6 {[%clk 0:02:41]} 5. Nbd2 {[%clk 0:02:57]}  Qb6 {[%clk 0:02:41]} 6. dxc5 {[%clk 0:02:57]}  Qxb2 {[%clk 0:02:41]} 7. Rb1 {[%clk 0:02:58]}  Qa3 {[%clk 0:02:42]} 8. Bb5 {[%clk 0:02:58]}  g6 {[%clk 0:02:40]} 9. c4 {[%clk 0:02:48]}  Bg7 {[%clk 0:02:36]} 10. cxd5 {[%clk 0:02:39]}  Nxd5 {[%clk 0:02:37]} 11. Bg3 {[%clk 0:02:28]}  Nc3 {[%clk 0:02:36]} 12. Qb3 {[%clk 0:02:26]}  Nxb1 {[%clk 0:02:32]} 13. Qxb1 {[%clk 0:02:25]}  O-O {[%clk 0:02:32]} 14. O-O {[%clk 0:02:16]}  Bf5 {[%clk 0:02:33]} 15. e4 {[%clk 0:02:15]}  Be6 {[%clk 0:02:33]} 0-1


[Site "https://www.chess.com"]

[Event "Titled Tuesday Blitz March 21 Late 2023"]
[White "Steinberg, Nitzan"]
[Black "Davidson, Kevin"]
[WhiteFideId "2801795"]
[BlackFideId "2056810"]
[WhiteElo "2486"]
[BlackElo "2151"]
[Result "1-0"]
[Round "02"]
[TimeControl "180+2"]
[Date "2023.03.21"]
[WhiteClock "0:00:31"]
[BlackClock "0:00:01"]

1. Nf3 {[%clk 0:03:00]}  Nf6 {[%clk 0:02:59]} 2. g3 {[%clk 0:03:01]}  g6 {[%clk 0:02:55]} 3. Bg2 {[%clk 0:03:01]}  Bg7 {[%clk 0:02:56]} 4. O-O {[%clk 0:03:02]}  O-O {[%clk 0:02:56]} 5. d4 {[%clk 0:03:03]}  d6 {[%clk 0:02:57]} 6. c4 {[%clk 0:03:03]}  Nbd7 {[%clk 0:02:57]} 7. Nc3 {[%clk 0:03:04]}  e5 {[%clk 0:02:58]} 8. e4 {[%clk 0:03:03]}  c6 {[%clk 0:02:58]} 9. Re1 {[%clk 0:03:02]}  Qb6 {[%clk 0:02:57]} 10. d5 {[%clk 0:02:57]}  Nc5 {[%clk 0:02:56]} 11. Qc2 {[%clk 0:02:49]}  cxd5 {[%clk 0:02:56]} 12. cxd5 {[%clk 0:02:48]}  Bd7 {[%clk 0:02:56]} 13. h3 {[%clk 0:02:46]}  a5 {[%clk 0:02:46]} 14. Be3 {[%clk 0:02:46]}  Rfc8 {[%clk 0:02:44]} 15. Nd2 {[%clk 0:02:43]}  Qd8 {[%clk 0:02:21]} 16. a4 {[%clk 0:02:28]}  Nxa4 {[%clk 0:01:42]} 17. Rxa4 {[%clk 0:02:25]}  b5 {[%clk 0:01:42]} 18. Raa1 {[%clk 0:02:20]}  b4 {[%clk 0:01:42]} 19. Qd3 {[%clk 0:02:16]}  bxc3 {[%clk 0:01:42]} 20. bxc3 {[%clk 0:02:17]}  a4 {[%clk 0:01:34]} 21. c4 {[%clk 0:02:17]}  Qa5 {[%clk 0:01:21]} 22. Ra3 {[%clk 0:02:14]}  Rcb8 {[%clk 0:01:03]} 23. Rea1 {[%clk 0:02:11]}  Rb2 {[%clk 0:01:01]} 24. c5 {[%clk 0:02:09]}  dxc5 {[%clk 0:00:48]} 25. Nc4 {[%clk 0:02:09]}  Qb4 {[%clk 0:00:36]} 26. Nxb2 {[%clk 0:02:05]}  Qxb2 {[%clk 0:00:37]} 27. Bxc5 {[%clk 0:02:03]}  Rc8 {[%clk 0:00:32]} 28. Rb1 {[%clk 0:01:52]}  Qxb1+ {[%clk 0:00:25]} 29. Qxb1 {[%clk 0:01:52]}  Rxc5 {[%clk 0:00:25]} 30. Qb6 {[%clk 0:01:27]}  Rc1+ {[%clk 0:00:23]} 31. Kh2 {[%clk 0:01:27]}  h5 {[%clk 0:00:20]} 32. Ra2 {[%clk 0:01:12]}  Kh7 {[%clk 0:00:18]} 33. Bf3 {[%clk 0:01:11]}  Rc3 {[%clk 0:00:16]} 34. Kg2 {[%clk 0:01:07]}  Rc4 {[%clk 0:00:16]} 35. Qa6 {[%clk 0:00:58]}  Rd4 {[%clk 0:00:14]} 36. Qd6 {[%clk 0:00:54]}  Bc8 {[%clk 0:00:09]} 37. Qc7 {[%clk 0:00:47]}  Bd7 {[%clk 0:00:08]} 38. Qd6 {[%clk 0:00:41]}  Rd3 {[%clk 0:00:07]} 39. Qe7 {[%clk 0:00:36]}  Bxh3+ {[%clk 0:00:06]} 40. Kxh3 {[%clk 0:00:36]}  Rxf3 {[%clk 0:00:07]} 41. Kg2 {[%clk 0:00:34]}  Rb3 {[%clk 0:00:02]} 42. d6 {[%clk 0:00:32]}  Nxe4 {[%clk 0:00:01]} 43. d7 {[%clk 0:00:31]}  Bf6 {[%clk 0:00:01]} 44. Qxf7+ {[%clk 0:00:31]}  Kh6 {[%clk 0:00:01]} 45. Qxf6 {[%clk 0:00:31]}  Nxf6 {[%clk 0:00:01]} 46. d8=Q {[%clk 0:00:31]} 1-0


[Site "https://www.chess.com"]

[Event "Titled Tuesday Blitz March 21 Late 2023"]
[White "Jimenez Jimenez, Leandro"]
[Black "Gharibyan, Mamikon"]
[WhiteFideId "6415253"]
[BlackFideId "13308300"]
[WhiteElo "2263"]
[BlackElo "2445"]
[Result "0-1"]
[Round "02"]
[TimeControl "180+2"]
[Date "2023.03.21"]
[WhiteClock "0:00:31"]
[BlackClock "0:01:51"]

1. d4 {[%clk 0:02:59]}  g6 {[%clk 0:03:00]} 2. c4 {[%clk 0:02:59]}  Nf6 {[%clk 0:03:00]} 3. Nc3 {[%clk 0:03:00]}  Bg7 {[%clk 0:03:01]} 4. e4 {[%clk 0:03:01]}  d6 {[%clk 0:03:01]} 5. f3 {[%clk 0:03:01]}  O-O {[%clk 0:03:01]} 6. Be3 {[%clk 0:03:02]}  a6 {[%clk 0:03:01]} 7. Nge2 {[%clk 0:02:57]}  c6 {[%clk 0:02:59]} 8. Ng3 {[%clk 0:02:46]}  b5 {[%clk 0:02:58]} 9. Bd3 {[%clk 0:02:44]}  Bb7 {[%clk 0:02:56]} 10. O-O {[%clk 0:02:44]}  Nbd7 {[%clk 0:02:52]} 11. Qd2 {[%clk 0:02:38]}  e5 {[%clk 0:02:52]} 12. d5 {[%clk 0:02:36]}  bxc4 {[%clk 0:02:48]} 13. Bxc4 {[%clk 0:02:36]}  Nb6 {[%clk 0:02:48]} 14. Bb3 {[%clk 0:02:31]}  cxd5 {[%clk 0:02:45]} 15. Nxd5 {[%clk 0:02:31]}  Nfxd5 {[%clk 0:02:40]} 16. exd5 {[%clk 0:02:23]}  a5 {[%clk 0:02:40]} 17. a4 {[%clk 0:02:03]}  f5 {[%clk 0:02:38]} 18. f4 {[%clk 0:01:57]}  exf4 {[%clk 0:02:39]} 19. Bxf4 {[%clk 0:01:57]}  Qf6 {[%clk 0:02:36]} 20. Rab1 {[%clk 0:01:46]}  Rfe8 {[%clk 0:02:22]} 21. Rfd1 {[%clk 0:01:40]}  h5 {[%clk 0:02:15]} 22. Bg5 {[%clk 0:01:35]}  Qe5 {[%clk 0:02:13]} 23. Bf4 {[%clk 0:01:35]}  Qf6 {[%clk 0:02:13]} 24. Bg5 {[%clk 0:01:34]}  Qf7 {[%clk 0:02:07]} 25. Be3 {[%clk 0:01:28]}  Nd7 {[%clk 0:02:01]} 26. Ne2 {[%clk 0:01:27]}  Qe7 {[%clk 0:01:56]} 27. Kf2 {[%clk 0:01:18]}  Nf6 {[%clk 0:01:54]} 28. Kf3 {[%clk 0:00:31]}  Qe4+ {[%clk 0:01:51]} 0-1


[Site "https://www.chess.com"]

[Event "Titled Tuesday Blitz March 21 Late 2023"]
[White "Gines Esteo, Pedro Antonio"]
[Black "Rios Escobar, Adan"]
[WhiteFideId "32080190"]
[BlackFideId "3403645"]
[WhiteElo "2453"]
[BlackElo "2399"]
[Result "1-0"]
[Round "02"]
[TimeControl "180+2"]
[Date "2023.03.21"]
[WhiteClock "0:00:41"]
[BlackClock "0:00:01"]

1. d4 {[%clk 0:03:00]}  Nf6 {[%clk 0:02:58]} 2. Nf3 {[%clk 0:03:00]}  g6 {[%clk 0:02:56]} 3. Bg5 {[%clk 0:02:57]}  Bg7 {[%clk 0:02:56]} 4. Nbd2 {[%clk 0:02:58]}  d5 {[%clk 0:02:54]} 5. e3 {[%clk 0:02:57]}  O-O {[%clk 0:02:50]} 6. Be2 {[%clk 0:02:58]}  h6 {[%clk 0:02:51]} 7. Bh4 {[%clk 0:02:57]}  Nbd7 {[%clk 0:02:46]} 8. O-O {[%clk 0:02:55]}  c5 {[%clk 0:02:46]} 9. c3 {[%clk 0:02:55]}  b6 {[%clk 0:02:45]} 10. a4 {[%clk 0:02:55]}  Bb7 {[%clk 0:02:42]} 11. a5 {[%clk 0:02:54]}  Ne4 {[%clk 0:02:28]} 12. Nxe4 {[%clk 0:02:53]}  dxe4 {[%clk 0:02:28]} 13. Nd2 {[%clk 0:02:53]}  g5 {[%clk 0:02:09]} 14. Bg3 {[%clk 0:02:53]}  e5 {[%clk 0:02:08]} 15. dxc5 {[%clk 0:01:48]}  Nxc5 {[%clk 0:02:08]} 16. Qc2 {[%clk 0:01:46]}  f5 {[%clk 0:01:48]} 17. h3 {[%clk 0:01:40]}  f4 {[%clk 0:01:46]} 18. Bh2 {[%clk 0:01:40]}  Kh8 {[%clk 0:01:32]} 19. a6 {[%clk 0:01:36]}  Bc6 {[%clk 0:01:29]} 20. Rad1 {[%clk 0:01:36]}  Qc7 {[%clk 0:01:26]} 21. b4 {[%clk 0:01:26]}  Ba4 {[%clk 0:01:17]} 22. Qb1 {[%clk 0:01:26]}  Bxd1 {[%clk 0:01:16]} 23. Rxd1 {[%clk 0:01:25]}  Nd3 {[%clk 0:01:13]} 24. Nxe4 {[%clk 0:01:24]}  Nxf2 {[%clk 0:01:05]} 25. Nxf2 {[%clk 0:01:22]}  Qxc3 {[%clk 0:01:01]} 26. Qg6 {[%clk 0:01:07]}  Rad8 {[%clk 0:00:17]} 27. Bd3 {[%clk 0:00:52]}  e4 {[%clk 0:00:08]} 28. Qxe4 {[%clk 0:00:51]}  Rxd3 {[%clk 0:00:04]} 29. Qxd3 {[%clk 0:00:51]}  Qxb4 {[%clk 0:00:04]} 30. exf4 {[%clk 0:00:49]}  Qc5 {[%clk 0:00:01]} 31. Qd5 {[%clk 0:00:41]} 1-0


[Site "https://www.chess.com"]

[Event "Titled Tuesday Blitz March 21 Late 2023"]
[White "liwadas82"]
[Black "Timmermans, Mark"]
[BlackFideId "1026399"]
[WhiteElo "2397"]
[BlackElo "2460"]
[Result "0-1"]
[Round "02"]
[TimeControl "180+2"]
[Date "2023.03.21"]
[WhiteClock "0:00:02"]
[BlackClock "0:01:01"]

1. e4 {[%clk 0:03:00]}  e5 {[%clk 0:02:57]} 2. Nf3 {[%clk 0:02:59]}  Nc6 {[%clk 0:02:56]} 3. Bb5 {[%clk 0:02:58]}  f5 {[%clk 0:02:54]} 4. d3 {[%clk 0:02:56]}  fxe4 {[%clk 0:02:53]} 5. dxe4 {[%clk 0:02:56]}  Nf6 {[%clk 0:02:54]} 6. Qe2 {[%clk 0:02:53]}  d6 {[%clk 0:02:54]} 7. O-O {[%clk 0:02:47]}  Be7 {[%clk 0:02:54]} 8. Nc3 {[%clk 0:02:36]}  O-O {[%clk 0:02:54]} 9. Qc4+ {[%clk 0:02:27]}  Kh8 {[%clk 0:02:54]} 10. Bxc6 {[%clk 0:02:27]}  bxc6 {[%clk 0:02:55]} 11. Qxc6 {[%clk 0:02:28]}  Rb8 {[%clk 0:02:56]} 12. Qc4 {[%clk 0:02:23]}  c6 {[%clk 0:02:56]} 13. Qxc6 {[%clk 0:02:12]}  Rb4 {[%clk 0:02:56]} 14. Nd5 {[%clk 0:01:43]}  Nxd5 {[%clk 0:02:56]} 15. exd5 {[%clk 0:01:34]}  Bb7 {[%clk 0:02:33]} 16. Qc3 {[%clk 0:01:32]}  Rg4 {[%clk 0:02:33]} 17. h3 {[%clk 0:01:29]}  Rxg2+ {[%clk 0:02:23]} 18. Kxg2 {[%clk 0:01:21]}  Bxd5 {[%clk 0:02:24]} 19. Qd2 {[%clk 0:01:09]}  Bxf3+ {[%clk 0:02:21]} 20. Kh2 {[%clk 0:01:08]}  d5 {[%clk 0:02:21]} 21. Rg1 {[%clk 0:01:04]}  e4 {[%clk 0:02:20]} 22. Rg3 {[%clk 0:00:46]}  Bd6 {[%clk 0:02:18]} 23. Qg5 {[%clk 0:00:45]}  Qxg5 {[%clk 0:02:06]} 24. Bxg5 {[%clk 0:00:44]}  d4 {[%clk 0:02:07]} 25. Re1 {[%clk 0:00:35]}  h6 {[%clk 0:01:58]} 26. Bd2 {[%clk 0:00:33]}  e3 {[%clk 0:01:49]} 27. fxe3 {[%clk 0:00:32]}  Bd5 {[%clk 0:01:46]} 28. Re2 {[%clk 0:00:27]}  Rf3 {[%clk 0:01:37]} 29. Rg2 {[%clk 0:00:23]}  dxe3 {[%clk 0:01:38]} 30. Be1 {[%clk 0:00:22]}  Rf1 {[%clk 0:01:18]} 31. Rg1 {[%clk 0:00:22]}  e2 {[%clk 0:01:18]} 32. h4 {[%clk 0:00:14]}  g5 {[%clk 0:01:17]} 33. Kh3 {[%clk 0:00:14]}  Be6+ {[%clk 0:01:11]} 34. Kg2 {[%clk 0:00:14]}  Bd5+ {[%clk 0:01:01]} 35. Kh3 {[%clk 0:00:14]}  Bxg3 {[%clk 0:01:00]} 36. Rxg3 {[%clk 0:00:05]}  Rxe1 {[%clk 0:01:00]} 37. Re3 {[%clk 0:00:04]}  Bc4 {[%clk 0:00:59]} 38. hxg5 {[%clk 0:00:03]}  Rh1+ {[%clk 0:00:59]} 39. Kg2 {[%clk 0:00:03]}  e1=Q {[%clk 0:01:00]} 40. Rxe1 {[%clk 0:00:02]}  Rxe1 {[%clk 0:01:01]} 0-1


[Site "https://www.chess.com"]

[Event "Titled Tuesday Blitz March 21 Late 2023"]
[White "Martinez Ramirez, Lennis"]
[Black "ArturoCaceres"]
[WhiteFideId "3509079"]
[WhiteElo "2439"]
[BlackElo "2386"]
[Result "0-1"]
[Round "02"]
[TimeControl "180+2"]
[Date "2023.03.21"]
[WhiteClock "0:00:44"]
[BlackClock "0:00:15"]

1. b4 {[%clk 0:02:32]}  a5 {[%clk 0:02:58]} 2. b5 {[%clk 0:02:30]}  a4 {[%clk 0:02:59]} 3. e4 {[%clk 0:02:29]}  b6 {[%clk 0:02:52]} 4. Nf3 {[%clk 0:02:28]}  Bb7 {[%clk 0:02:51]} 5. e5 {[%clk 0:02:26]}  e6 {[%clk 0:02:43]} 6. d4 {[%clk 0:02:26]}  Ne7 {[%clk 0:02:42]} 7. Bg5 {[%clk 0:02:25]}  h6 {[%clk 0:02:42]} 8. Bh4 {[%clk 0:02:24]}  g5 {[%clk 0:02:42]} 9. Bg3 {[%clk 0:02:22]}  Nf5 {[%clk 0:02:41]} 10. c3 {[%clk 0:02:22]}  h5 {[%clk 0:02:37]} 11. h4 {[%clk 0:02:20]}  g4 {[%clk 0:02:33]} 12. Ng5 {[%clk 0:02:13]}  Nxg3 {[%clk 0:02:21]} 13. fxg3 {[%clk 0:02:12]}  f6 {[%clk 0:02:14]} 14. exf6 {[%clk 0:02:10]}  Qxf6 {[%clk 0:02:15]} 15. Bd3 {[%clk 0:02:06]}  Bxg2 {[%clk 0:00:58]} 16. Rh2 {[%clk 0:02:01]}  Bf3 {[%clk 0:00:46]} 17. Nxf3 {[%clk 0:01:56]}  Qxf3 {[%clk 0:00:44]} 18. Qxf3 {[%clk 0:01:55]}  gxf3 {[%clk 0:00:44]} 19. Rf2 {[%clk 0:01:55]}  Bd6 {[%clk 0:00:44]} 20. Rxf3 {[%clk 0:01:55]}  Rg8 {[%clk 0:00:44]} 21. Kf2 {[%clk 0:01:55]}  Ke7 {[%clk 0:00:39]} 22. Nd2 {[%clk 0:01:55]}  c6 {[%clk 0:00:39]} 23. Ne4 {[%clk 0:01:54]}  cxb5 {[%clk 0:00:37]} 24. Bxb5 {[%clk 0:01:54]}  Nc6 {[%clk 0:00:38]} 25. Bxc6 {[%clk 0:01:52]}  dxc6 {[%clk 0:00:38]} 26. Re1 {[%clk 0:01:52]}  Raf8 {[%clk 0:00:33]} 27. Ng5 {[%clk 0:01:47]}  Rxf3+ {[%clk 0:00:33]} 28. Kxf3 {[%clk 0:01:47]}  Rf8+ {[%clk 0:00:34]} 29. Kg2 {[%clk 0:01:47]}  Rf6 {[%clk 0:00:34]} 30. c4 {[%clk 0:01:40]}  Kd7 {[%clk 0:00:22]} 31. Re2 {[%clk 0:01:16]}  Bc7 {[%clk 0:00:18]} 32. Re3 {[%clk 0:01:14]}  b5 {[%clk 0:00:18]} 33. d5 {[%clk 0:01:11]}  exd5 {[%clk 0:00:17]} 34. cxd5 {[%clk 0:01:10]}  cxd5 {[%clk 0:00:18]} 35. Rd3 {[%clk 0:01:10]}  Kc6 {[%clk 0:00:16]} 36. Nf3 {[%clk 0:01:10]}  Bb6 {[%clk 0:00:14]} 37. Rc3+ {[%clk 0:01:10]}  Bc5 {[%clk 0:00:13]} 38. Ng5 {[%clk 0:01:10]}  b4 {[%clk 0:00:12]} 39. Rc2 {[%clk 0:01:07]}  Kb5 {[%clk 0:00:11]} 40. Kh3 {[%clk 0:01:04]}  b3 {[%clk 0:00:12]} 41. axb3 {[%clk 0:01:04]}  axb3 {[%clk 0:00:13]} 42. Rb2 {[%clk 0:01:01]}  Kc4 {[%clk 0:00:12]} 43. Rb1 {[%clk 0:00:59]}  Ba3 {[%clk 0:00:11]} 44. g4 {[%clk 0:00:57]}  Kc3 {[%clk 0:00:08]} 45. gxh5 {[%clk 0:00:55]}  Kc2 {[%clk 0:00:08]} 46. Ra1 {[%clk 0:00:55]}  b2 {[%clk 0:00:08]} 47. Ra2 {[%clk 0:00:55]}  Kb3 {[%clk 0:00:07]} 48. Rxb2+ {[%clk 0:00:55]}  Bxb2 {[%clk 0:00:08]} 49. Kg4 {[%clk 0:00:54]}  d4 {[%clk 0:00:07]} 50. Ne4 {[%clk 0:00:54]}  Rf8 {[%clk 0:00:06]} 51. h6 {[%clk 0:00:53]}  d3 {[%clk 0:00:06]} 52. h7 {[%clk 0:00:53]}  Kc2 {[%clk 0:00:06]} 53. Kg5 {[%clk 0:00:51]}  d2 {[%clk 0:00:07]} 54. Nxd2 {[%clk 0:00:48]}  Kxd2 {[%clk 0:00:08]} 55. Kh6 {[%clk 0:00:48]}  Rh8 {[%clk 0:00:09]} 56. h5 {[%clk 0:00:48]}  Ke3 {[%clk 0:00:09]} 57. Kg6 {[%clk 0:00:47]}  Kf4 {[%clk 0:00:10]} 58. Kh6 {[%clk 0:00:47]}  Ke4 {[%clk 0:00:09]} 59. Kg6 {[%clk 0:00:46]}  Kd5 {[%clk 0:00:09]} 60. Kh6 {[%clk 0:00:47]}  Ke6 {[%clk 0:00:08]} 61. Kg6 {[%clk 0:00:47]}  Ke7 {[%clk 0:00:08]} 62. Kh6 {[%clk 0:00:46]}  Kf7 {[%clk 0:00:08]} 63. Kg5 {[%clk 0:00:45]}  Rxh7 {[%clk 0:00:08]} 64. Kg4 {[%clk 0:00:46]}  Bc1 {[%clk 0:00:08]} 65. Kh4 {[%clk 0:00:45]}  Bh6 {[%clk 0:00:09]} 66. Kg4 {[%clk 0:00:45]}  Rg7+ {[%clk 0:00:09]} 67. Kf5 {[%clk 0:00:45]}  Rg5+ {[%clk 0:00:10]} 68. Ke4 {[%clk 0:00:46]}  Rxh5 {[%clk 0:00:11]} 69. Kd4 {[%clk 0:00:46]}  Be3+ {[%clk 0:00:11]} 70. Ke4 {[%clk 0:00:47]}  Ke6 {[%clk 0:00:11]} 71. Kxe3 {[%clk 0:00:44]}  Ke5 {[%clk 0:00:11]} 72. Kf3 {[%clk 0:00:44]}  Rg5 {[%clk 0:00:12]} 73. Kf2 {[%clk 0:00:42]}  Ke4 {[%clk 0:00:11]} 74. Ke2 {[%clk 0:00:43]}  Rg2+ {[%clk 0:00:11]} 75. Kf1 {[%clk 0:00:41]}  Kf3 {[%clk 0:00:11]} 76. Ke1 {[%clk 0:00:42]}  Rf2 {[%clk 0:00:11]} 77. Kd1 {[%clk 0:00:43]}  Re2 {[%clk 0:00:12]} 78. Kc1 {[%clk 0:00:44]}  Ke3 {[%clk 0:00:12]} 79. Kb1 {[%clk 0:00:44]}  Kd3 {[%clk 0:00:13]} 80. Kc1 {[%clk 0:00:44]}  Rd2 {[%clk 0:00:13]} 81. Kb1 {[%clk 0:00:45]}  Rc2 {[%clk 0:00:13]} 82. Ka1 {[%clk 0:00:43]}  Kc3 {[%clk 0:00:14]} 83. Kb1 {[%clk 0:00:44]}  Kb3 {[%clk 0:00:15]} 84. Ka1 {[%clk 0:00:44]}  Rc1# {[%clk 0:00:15]} 0-1


[Site "https://www.chess.com"]